bitfinex-derivatives/quotes_BTCF0:USTF0_20250620
["timestamp","ask_amount","ask_price","bid_price","bid_amount"]
[1750431064641,0.01568327,104440.0,104430.0,1.38470671]
[1750431064833,0.01568327,104440.0,104430.0,0.8960004]
[1750431065035,0.01568327,104440.0,104430.0,0.9960004]
[1750431065234,0.1924467,104460.0,104450.0,0.190458]
[1750431065543,0.25737158,104460.0,104450.0,0.8518]
[1750431065738,0.39549828,104460.0,104450.0,0.3732635]
[1750431066039,0.1924635,104450.0,104440.0,0.0855]
[1750431066239,0.1914818,104440.0,104430.0,0.002]
[1750431066436,0.98258196,104440.0,104430.0,0.012]
[1750431066644,0.98258196,104440.0,104430.0,0.0124]
[1750431066939,0.98258196,104440.0,104430.0,0.0114]
[1750431067443,1.34639625,104440.0,104430.0,0.1932]
[1750431067638,1.00639625,104440.0,104430.0,0.1932]
[1750431067839,1.34639625,104440.0,104430.0,0.1832]
[1750431068031,0.65929609,104440.0,104430.0,0.3737005]
[1750431068236,0.98358196,104440.0,104430.0,0.1822]
[1750431068433,0.1915005,104430.0,104420.0,0.0008]
[1750431068739,0.98590066,104430.0,104420.0,0.1818]
[1750431069331,0.98590066,104430.0,104420.0,0.0004]
[1750431069538,1.08590066,104430.0,104420.0,0.0004]
[1750431069739,0.1915188,104420.0,104410.0,0.20903315]
[1750431070043,0.98661896,104420.0,104410.0,0.01749685]
[1750431070246,1.33661896,104420.0,104410.0,0.01749685]
[1750431070543,0.20853911,104400.0,104390.0,0.0016]
[1750431070744,1.83623927,104400.0,104390.0,0.00084502]
[1750431070939,0.1925922,104380.0,104370.0,0.1916093]
[1750431071139,0.1925922,104380.0,104370.0,0.1924093]
[1750431071140,0.9141922,104380.0,104370.0,0.1924093]
[1750431071340,1.30479236,104380.0,104370.0,0.2346093]
[1750431071646,1.30379236,104380.0,104370.0,0.043]
[1750431071840,1.30479236,104380.0,104370.0,0.85436]
[1750431072043,0.1916106,104370.0,104360.0,0.42159168]
[1750431072349,0.5534106,104370.0,104360.0,0.27867428]
[1750431072535,0.38061232,104380.0,104370.0,0.1926106]
[1750431072740,0.01881232,104380.0,104370.0,0.2781106]
[1750431073037,0.57320452,104380.0,104370.0,0.94394]
[1750431073238,0.57320452,104380.0,104370.0,0.85884]
[1750431073438,0.96010468,104380.0,104370.0,1.0474506]
[1750431073634,0.61300452,104380.0,104370.0,0.89764]
[1750431073833,0.61300452,104380.0,104370.0,0.89776]
[1750431074141,0.01581232,104380.0,104370.0,0.2342106]
[1750431074336,0.5533922,104380.0,104370.0,0.0859]
[1750431074644,0.5691831,104380.0,104370.0,0.0859]
[1750431074946,0.91628326,104380.0,104370.0,0.0004]
[1750431075141,1.00628326,104380.0,104370.0,0.001]
[1750431075341,1.00628326,104380.0,104370.0,0.0014]
[1750431075544,1.00728326,104380.0,104370.0,0.0034]
[1750431075746,1.00728326,104380.0,104370.0,0.003]
[1750431075942,1.00728326,104380.0,104370.0,0.0034]
[1750431076248,0.6601831,104380.0,104370.0,0.0034]
[1750431076449,1.00728326,104380.0,104370.0,0.0034]
[1750431076643,0.96408326,104380.0,104370.0,0.0034]
[1750431076946,1.00498326,104380.0,104370.0,0.0034]
[1750431077750,1.37498326,104380.0,104370.0,0.0034]
[1750431077951,1.00498326,104380.0,104370.0,0.0034]
[1750431078153,1.33498326,104380.0,104370.0,0.0034]
[1750431078744,0.1916105,104370.0,104360.0,0.00175818]
[1750431078949,0.98441066,104370.0,104360.0,0.00175818]
[1750431079144,1.00787724,104370.0,104360.0,0.00095818]
[1750431079352,1.03077708,104370.0,104360.0,0.00095818]
[1750431079548,0.98441066,104370.0,104360.0,0.00135818]
[1750431079748,1.00787231,104370.0,104360.0,0.00135818]
[1750431079946,1.00987231,104370.0,104360.0,0.00235818]
[1750431080151,1.01087231,104370.0,104360.0,0.00435818]
[1750431080452,1.01187231,104370.0,104360.0,0.00435818]
[1750431080649,1.01187231,104370.0,104360.0,0.00395818]
[1750431080851,1.01187231,104370.0,104360.0,0.00435818]
[1750431081453,0.98741066,104370.0,104360.0,0.00435818]
[1750431081644,0.98841066,104370.0,104360.0,0.00435818]
[1750431081841,0.5554105,104370.0,104360.0,0.23728688]
[1750431082152,0.1956104,104370.0,104360.0,0.64038688]
[1750431082449,0.1946103,104370.0,104360.0,0.65804145]
[1750431082652,0.1946103,104370.0,104360.0,1.23592145]
[1750431082850,0.1956103,104370.0,104360.0,1.16592145]
[1750431083052,0.004,104370.0,104360.0,1.16592145]
[1750431083241,0.003,104370.0,104360.0,2.40545361]
[1750431083654,0.003,104370.0,104360.0,2.05835345]
[1750431084057,0.003,104370.0,104360.0,1.86672145]
[1750431084252,0.003,104370.0,104360.0,1.85672145]
[1750431084455,0.003,104370.0,104360.0,1.52672145]
[1750431084753,0.003,104370.0,104360.0,2.62545361]
[1750431085058,0.86126447,104400.0,104390.0,0.1915736]
[1750431085059,0.56833881,104400.0,104390.0,0.1915736]
[1750431085246,0.56833881,104400.0,104390.0,1.4185336]
[1750431085446,0.91643897,104400.0,104390.0,1.00316]
[1750431085648,0.91643897,104400.0,104390.0,1.1947336]
[1750431085948,0.37678361,104400.0,104390.0,1.1951336]
[1750431086149,0.01598361,104400.0,104390.0,1.5159336]
[1750431086355,0.21353881,104400.0,104390.0,1.5159336]
[1750431086543,0.21353881,104400.0,104390.0,1.1556136]
[1750431086544,0.58033881,104400.0,104390.0,1.1556136]
[1750431086746,0.58033881,104400.0,104390.0,0.0962]
[1750431086942,0.92743897,104400.0,104390.0,0.96432]
[1750431087143,0.92743897,104400.0,104390.0,0.01]
[1750431087352,0.1915983,104380.0,104370.0,1.1558469]
[1750431087655,0.37658398,104380.0,104370.0,0.3287069]
[1750431087848,0.37658398,104380.0,104370.0,2.11458306]
[1750431088345,0.56817578,104380.0,104370.0,1.7195809]
[1750431089143,0.56817578,104380.0,104370.0,0.6512049]
[1750431089355,0.37758398,104380.0,104370.0,0.6528049]
[1750431089555,0.37758398,104380.0,104370.0,1.5306849]
[1750431089759,0.37758398,104380.0,104370.0,1.5302849]
[1750431090053,0.56817578,104380.0,104370.0,1.5286849]
[1750431090259,0.56917578,104380.0,104370.0,0.244303]
[1750431090559,0.56917578,104380.0,104370.0,1.163943]
[1750431090745,0.56917578,104380.0,104370.0,1.167943]
[1750431090951,0.57117578,104380.0,104370.0,1.167943]
[1750431091148,0.57117578,104380.0,104370.0,1.166663]
[1750431091654,1.27907594,104380.0,104370.0,0.96814]
[1750431091850,1.32157594,104380.0,104370.0,0.195]
[1750431092155,1.36447594,104380.0,104370.0,0.006]
[1750431092354,1.36447594,104380.0,104370.0,0.0483]
[1750431092549,1.38798204,104380.0,104370.0,0.2349]
[1750431092749,1.01737578,104380.0,104370.0,0.9235]
[1750431093046,1.36347594,104380.0,104370.0,0.9219]
[1750431093247,1.36547594,104380.0,104370.0,0.9239]
[1750431093450,1.30358254,104380.0,104370.0,0.2339]
[1750431093748,1.30258254,104380.0,104370.0,0.0453]
[1750431094052,0.1926285,104360.0,104350.0,0.0058]
[1750431094251,1.26132866,104360.0,104350.0,0.005]
[1750431094553,1.34452866,104360.0,104350.0,0.0054]
[1750431095054,1.36804172,104360.0,104350.0,0.0054]
[1750431095758,1.36804172,104360.0,104350.0,0.0074]
[1750431095759,1.02394156,104360.0,104350.0,0.0074]
[1750431096051,1.37104172,104360.0,104350.0,0.0074]
[1750431096351,1.02394156,104360.0,104350.0,0.0074]
[1750431096559,1.37104172,104360.0,104350.0,0.0074]
[1750431096752,1.40463208,104360.0,104350.0,0.1990468]
[1750431096952,0.98104156,104360.0,104350.0,0.2430468]
[1750431097253,1.32814172,104360.0,104350.0,0.0514]
[1750431098454,1.0391088,104360.0,104350.0,0.0514]
[1750431098654,1.38620896,104360.0,104350.0,0.0514]
[1750431098854,1.38620896,104360.0,104350.0,0.2430468]
[1750431099256,0.9971088,104360.0,104350.0,1.13518215]
[1750431099455,1.34420896,104360.0,104350.0,1.13518215]
[1750431100152,1.34420896,104360.0,104350.0,0.26062215]
[1750431100358,1.34420896,104360.0,104350.0,0.94646215]
[1750431100657,1.07250837,104360.0,104350.0,0.26062215]
[1750431100855,1.07250837,104360.0,104350.0,0.94550215]
[1750431100856,0.9568088,104360.0,104350.0,0.94550215]
[1750431101063,1.0002088,104360.0,104350.0,0.94550215]
[1750431101562,1.34730896,104360.0,104350.0,0.94550215]
[1750431102562,1.33124172,104360.0,104350.0,0.2430468]
[1750431102763,0.74811306,104360.0,104350.0,0.9274468]
[1750431102964,0.7246,104360.0,104350.0,1.69754696]
[1750431103464,0.7246,104360.0,104350.0,1.3504468]
[1750431103966,0.7246,104360.0,104350.0,0.6660468]
[1750431104267,0.9162284,104360.0,104350.0,0.6656468]
[1750431104455,0.9162284,104360.0,104350.0,1.2682468]
[1750431104652,0.7246,104360.0,104350.0,1.2678468]
[1750431104859,0.9162284,104360.0,104350.0,0.3960468]
[1750431105063,0.9162284,104360.0,104350.0,1.2688068]
[1750431105263,0.9162284,104360.0,104350.0,0.3960468]
[1750431105460,0.7246,104360.0,104350.0,1.2683268]
[1750431105766,0.7246,104360.0,104350.0,1.1583268]
[1750431106064,0.7246,104360.0,104350.0,1.6799828]
[1750431106364,0.7246,104360.0,104350.0,1.6699828]
[1750431106555,0.7246,104360.0,104350.0,1.4299828]
[1750431106756,0.7246,104360.0,104350.0,0.5577028]
[1750431106953,0.9162283,104360.0,104350.0,0.5577028]
[1750431107158,0.9162283,104360.0,104350.0,1.2370868]
[1750431107359,0.7246,104360.0,104350.0,1.2370868]
[1750431107554,0.7246,104360.0,104350.0,1.2374868]
[1750431107958,0.9162283,104360.0,104350.0,1.2372868]
[1750431108157,0.9162283,104360.0,104350.0,0.3660468]
[1750431108362,1.26332846,104360.0,104350.0,1.2368468]
[1750431108566,0.9162283,104360.0,104350.0,1.2368468]
[1750431108768,0.9162283,104360.0,104350.0,1.2364468]
[1750431108963,0.7683,104360.0,104350.0,1.2364468]
[1750431109170,0.7246,104360.0,104350.0,1.2368468]
[1750431109972,0.7246,104360.0,104350.0,1.5268468]
[1750431110264,0.7246,104360.0,104350.0,1.1958068]
[1750431110666,0.7246,104360.0,104350.0,1.3870628]
[1750431110966,1.89492608,104360.0,104350.0,0.0514]
[1750431111159,2.25862608,104360.0,104350.0,0.1954]
[1750431111364,2.48618315,104360.0,104350.0,0.1958]
[1750431111668,1.02748537,104360.0,104350.0,0.1986467]
[1750431111860,2.00618315,104360.0,104350.0,0.1958]
[1750431112062,2.00618315,104360.0,104350.0,0.0074]
[1750431112262,1.51683426,104360.0,104350.0,0.87576]
[1750431112871,1.37532004,104360.0,104350.0,0.8754]
[1750431113170,1.37532004,104360.0,104350.0,0.87516]
[1750431113470,1.37532004,104360.0,104350.0,0.87496]
[1750431113965,1.37532004,104360.0,104350.0,1.0666067]
[1750431113966,1.02748537,104360.0,104350.0,1.0666067]
[1750431114271,0.7246,104360.0,104350.0,0.5721467]
[1750431114459,0.37634673,104380.0,104370.0,0.1916099]
[1750431114763,0.5523734,104390.0,104380.0,0.1915916]
[1750431114960,0.5960734,104390.0,104380.0,0.1915916]
[1750431115165,0.3608,104390.0,104380.0,0.6393916]
[1750431115675,0.3608,104400.0,104390.0,0.1915732]
[1750431115870,0.0967628,104420.0,104390.0,0.1915732]
[1750431115871,0.99174747,104420.0,104390.0,2.21577698]
[1750431116072,0.30769058,104420.0,104400.0,0.5475561]
[1750431116371,0.001,104420.0,104410.0,1.1032765]
[1750431116668,0.1925182,104420.0,104410.0,1.3216076]
[1750431116870,0.54035287,104420.0,104410.0,0.2793365]
[1750431117072,0.99691677,104420.0,104410.0,1.0600165]
[1750431117267,1.03961677,104420.0,104410.0,1.1031165]
[1750431117470,0.4035,104420.0,104410.0,1.1031165]
[1750431117672,0.4055,104420.0,104410.0,1.1055165]
[1750431117868,0.4055,104420.0,104410.0,1.1502165]
[1750431118070,0.5970181,104420.0,104410.0,1.1502165]
[1750431118374,0.5970181,104420.0,104410.0,1.2102165]
[1750431118567,0.6000181,104420.0,104410.0,0.3427365]
[1750431118764,0.6000181,104420.0,104410.0,1.1053165]
[1750431118962,0.94785277,104420.0,104410.0,0.0034]
[1750431119272,0.1925549,104400.0,104390.0,0.8840464]
[1750431119575,1.59553947,104400.0,104390.0,0.89291393]
[1750431119877,0.1915916,104380.0,104370.0,1.13278071]
[1750431120074,0.90122627,104380.0,104370.0,2.34962071]
[1750431120271,0.94382627,104380.0,104370.0,0.02724921]
[1750431120577,0.98682627,104380.0,104370.0,0.02724921]
[1750431120773,1.37117208,104380.0,104370.0,0.88376921]
[1750431121073,1.34762627,104380.0,104370.0,0.01724921]
[1750431121370,1.34762627,104380.0,104370.0,1.07641911]
[1750431121371,1.37317226,104380.0,104370.0,1.07641911]
[1750431121577,0.7672,104380.0,104370.0,1.07601911]
[1750431121769,0.003,104380.0,104370.0,1.69151911]
[1750431121972,0.003,104380.0,104370.0,2.24975378]
[1750431122278,0.003,104380.0,104370.0,1.90191911]
[1750431122475,0.006,104380.0,104370.0,2.09453511]
[1750431123265,0.006,104380.0,104370.0,3.05316978]
[1750431123466,0.01586842,104400.0,104390.0,0.1915732]
[1750431123777,0.01586842,104400.0,104390.0,1.84839687]
[1750431123977,0.01686842,104400.0,104390.0,1.84839687]
[1750431124567,0.01686842,104400.0,104390.0,0.62211687]
[1750431124773,0.01686842,104400.0,104390.0,0.03884367]
[1750431124774,0.91805799,104400.0,104390.0,0.03884367]
[1750431124975,0.95945799,104400.0,104390.0,1.09557687]
[1750431125177,1.00195799,104400.0,104390.0,1.09517687]
[1750431125367,0.42006842,104400.0,104390.0,1.09557687]
[1750431125678,0.95945799,104400.0,104390.0,0.03844367]
[1750431125971,1.00305799,104400.0,104390.0,0.0014]
[1750431126187,0.1925915,104380.0,104370.0,0.001]
[1750431126477,1.42168391,104380.0,104370.0,0.0108]
[1750431126677,0.1916099,104370.0,104360.0,0.00095818]
[1750431126875,0.94164457,104370.0,104360.0,0.00095818]
[1750431127279,0.94164457,104370.0,104360.0,0.19258648]
[1750431127573,0.94164457,104370.0,104360.0,0.19298648]
[1750431127772,0.94264457,104370.0,104360.0,0.19798648]
[1750431128776,0.94364457,104370.0,104360.0,0.20098648]
[1750431129179,0.75203467,104370.0,104360.0,0.20098648]
[1750431129482,0.79353467,104370.0,104360.0,0.20098648]
[1750431129682,0.98514517,104370.0,104360.0,0.20098648]
[1750431130678,0.79353467,104370.0,104360.0,0.20098648]
[1750431130871,0.98514517,104370.0,104360.0,0.20098648]
[1750431131075,1.31514517,104370.0,104360.0,0.20098648]
[1750431131276,1.02472337,104370.0,104360.0,0.20098708]
[1750431131476,1.35112304,104370.0,104360.0,0.20098708]
[1750431131678,1.00112304,104370.0,104360.0,0.20098708]
[1750431131980,1.00112314,104370.0,104360.0,0.20098708]
[1750431132389,0.98514527,104370.0,104360.0,0.20098708]
[1750431132687,0.65290194,104370.0,104360.0,0.20098708]
[1750431132873,0.4042,104370.0,104360.0,0.20098708]
[1750431133074,0.94364527,104370.0,104360.0,0.25821698]
[1750431133278,1.48254527,104370.0,104360.0,0.25821698]
[1750431133691,1.49850845,104370.0,104360.0,0.24098708]
[1750431133886,1.49850845,104370.0,104360.0,0.42934708]
[1750431134587,1.30689785,104370.0,104360.0,0.42934708]
[1750431134886,1.49950845,104370.0,104360.0,0.42934708]
[1750431135187,1.59850845,104370.0,104360.0,0.24058718]
[1750431135388,1.59850845,104370.0,104360.0,0.24098718]
[1750431135591,1.59950845,104370.0,104360.0,0.24058718]
[1750431135893,1.59950845,104370.0,104360.0,0.24098718]
[1750431136389,1.52204249,104370.0,104360.0,0.24098718]
[1750431136580,1.52304249,104370.0,104360.0,0.23798718]
[1750431136782,1.86304249,104370.0,104360.0,0.04635818]
[1750431137081,1.85950845,104370.0,104360.0,0.00635818]
[1750431137287,1.89303188,104370.0,104360.0,0.00595818]
[1750431137485,1.89303188,104370.0,104360.0,0.00635818]
[1750431137885,1.54303188,104370.0,104360.0,0.19798668]
[1750431138080,1.52203188,104370.0,104360.0,0.19798668]
[1750431138689,1.47913188,104370.0,104360.0,0.19798668]
[1750431138881,0.95960795,104370.0,104360.0,0.73244259]
[1750431139083,0.95960795,104370.0,104360.0,0.92507109]
[1750431139084,1.00150795,104370.0,104360.0,0.92507109]
[1750431139280,1.00150795,104370.0,104360.0,0.69254259]
[1750431139487,1.00150795,104370.0,104360.0,0.88417109]
[1750431139788,1.00150795,104370.0,104360.0,0.88377109]
[1750431140087,1.00150795,104370.0,104360.0,0.88417109]
[1750431140284,1.00150795,104370.0,104360.0,0.02202259]
[1750431140480,1.00150795,104370.0,104360.0,0.21042259]
[1750431140682,0.1916296,104360.0,104350.0,0.005]
[1750431140882,1.40446574,104360.0,104350.0,0.045]
[1750431141083,0.192648,104350.0,104340.0,0.1924664]
[1750431141283,0.192648,104350.0,104340.0,0.1916664]
[1750431141284,1.08572757,104350.0,104340.0,0.1916664]
[1750431141482,1.10923581,104350.0,104340.0,0.1920664]
[1750431141684,1.08472757,104350.0,104340.0,0.1916664]
[1750431141880,1.08572757,104350.0,104340.0,0.1920664]
[1750431142291,1.10923458,104350.0,104340.0,0.1920664]
[1750431142588,1.41923458,104350.0,104340.0,0.0004]
[1750431142790,0.71969991,104350.0,104340.0,0.1916664]
[1750431142987,0.7011929,104350.0,104340.0,1.0894864]
[1750431143294,0.3658,104350.0,104340.0,1.0894864]
[1750431143484,0.005,104350.0,104340.0,1.0894864]
[1750431143689,0.005,104350.0,104340.0,1.4916864]
[1750431143982,0.194648,104350.0,104340.0,1.4906864]
[1750431144188,0.194648,104350.0,104340.0,1.5016864]
[1750431144189,0.004,104350.0,104340.0,1.5016864]
[1750431144384,0.004,104350.0,104340.0,2.66780107]
[1750431144691,0.004,104350.0,104340.0,3.04780107]
[1750431144888,0.195648,104350.0,104340.0,1.8474464]
[1750431145093,0.556448,104350.0,104340.0,1.9782064]
[1750431145289,0.597148,104350.0,104340.0,1.9578464]
[1750431145495,0.0447,104350.0,104340.0,1.9682464]
[1750431146397,0.0447,104350.0,104340.0,1.1166464]
[1750431146695,0.0447,104350.0,104340.0,1.9675664]
[1750431146892,0.004,104350.0,104340.0,2.3283664]
[1750431147095,0.004,104350.0,104340.0,2.3183664]
[1750431147293,0.004,104350.0,104340.0,2.5283664]
[1750431147992,0.004,104350.0,104340.0,2.1675664]
[1750431148192,0.004,104350.0,104340.0,2.5283664]
[1750431148400,0.004,104350.0,104340.0,2.3283664]
[1750431148990,0.004,104350.0,104340.0,2.6983664]
[1750431149392,0.004,104350.0,104340.0,1.1166464]
[1750431149598,0.004,104350.0,104340.0,1.9656464]
[1750431149897,0.004,104350.0,104340.0,2.3264464]
[1750431151197,0.004,104350.0,104340.0,1.4774464]
[1750431151390,0.004,104350.0,104340.0,2.3252064]
[1750431153001,0.195648,104350.0,104340.0,2.3252064]
[1750431153194,0.004,104350.0,104340.0,2.3245664]
[1750431153594,0.004,104350.0,104340.0,2.3241664]
[1750431153904,0.004,104350.0,104340.0,2.3245664]
[1750431154096,0.004,104350.0,104340.0,1.4774464]
[1750431154303,1.0459611,104350.0,104340.0,1.9624463]
[1750431154502,0.599248,104350.0,104340.0,1.9210463]
[1750431154705,1.0897611,104350.0,104340.0,1.9216463]
[1750431154903,1.0897611,104350.0,104340.0,1.9220463]
[1750431155098,1.0887611,104350.0,104340.0,1.0772463]
[1750431155306,0.38641493,104350.0,104340.0,1.0772463]
[1750431155508,0.38641493,104350.0,104340.0,1.9721863]
[1750431155804,0.57806293,104350.0,104340.0,1.8791863]
[1750431156004,0.62286293,104350.0,104340.0,1.9269863]
[1750431156206,0.62286293,104350.0,104340.0,1.9265863]
[1750431156402,0.62386293,104350.0,104340.0,1.9269863]
[1750431157300,0.62386293,104350.0,104340.0,1.9268263]
[1750431158109,0.62386293,104350.0,104340.0,1.0811463]
[1750431158302,0.62386293,104350.0,104340.0,1.9262663]
[1750431158701,0.62386293,104350.0,104340.0,1.0333463]
[1750431159003,0.43221493,104350.0,104340.0,1.8784663]
[1750431159198,0.43221493,104350.0,104340.0,1.1291463]
[1750431159400,0.43221493,104350.0,104340.0,1.9736263]
[1750431159909,0.02661493,104350.0,104340.0,2.8331794]
[1750431160304,0.02561493,104350.0,104340.0,2.8331794]
[1750431160613,0.02661493,104350.0,104340.0,2.3436663]
[1750431160805,0.02661493,104350.0,104340.0,1.9886594]
[1750431161000,0.02661493,104350.0,104340.0,2.8324994]
[1750431161396,0.02561493,104350.0,104340.0,2.4524994]
[1750431161602,0.002,104350.0,104340.0,3.1332994]
[1750431162608,0.06576318,104370.0,104360.0,0.1916296]
[1750431162810,0.0236421,104370.0,104360.0,3.0656158]
[1750431163112,1.10597762,104400.0,104380.0,0.2873652]
[1750431163411,1.0916876,104390.0,104380.0,0.2115745]
[1750431163606,1.53293307,104390.0,104380.0,0.0204]
[1750431163810,1.72293307,104390.0,104380.0,0.0204]
[1750431163999,1.53293307,104390.0,104380.0,0.8718729]
[1750431164204,1.53293307,104390.0,104380.0,0.67988]
[1750431164506,1.16293307,104390.0,104380.0,1.0547529]
[1750431164812,1.17693307,104390.0,104380.0,1.0557529]
[1750431165203,0.9399372,104390.0,104380.0,1.0547529]
[1750431165507,1.3139372,104390.0,104380.0,1.0557529]
[1750431165714,0.9549372,104390.0,104380.0,1.0367529]
[1750431166113,0.4654241,104390.0,104380.0,0.1939929]
[1750431166307,0.9549372,104390.0,104380.0,0.0024]
[1750431166511,1.5375372,104390.0,104380.0,0.0024]
[1750431166715,1.7875372,104390.0,104380.0,0.002]
[1750431167011,1.2539372,104390.0,104380.0,0.1935929]
[1750431167208,1.2539372,104390.0,104380.0,0.8526329]
[1750431167410,0.9419372,104390.0,104380.0,0.8502329]
[1750431167605,0.9439372,104390.0,104380.0,0.66104]
[1750431167806,1.4339372,104390.0,104380.0,0.66104]
[1750431168108,1.0519372,104390.0,104380.0,0.65944]
[1750431168309,1.4504372,104390.0,104380.0,0.65992]
[1750431168509,1.4504372,104390.0,104380.0,0.002]
[1750431168709,1.6420372,104390.0,104380.0,0.002]
[1750431168911,2.1380372,104390.0,104380.0,0.0024]
[1750431169106,2.1400372,104390.0,104380.0,0.0024]
[1750431169413,0.1926113,104370.0,104360.0,0.288233]
[1750431169609,1.06656987,104370.0,104360.0,1.140833]
[1750431169814,1.60856987,104370.0,104360.0,0.463393]
[1750431170014,1.49856987,104370.0,104360.0,0.463793]
[1750431170206,1.66856987,104370.0,104360.0,0.463793]
[1750431170406,1.16856987,104370.0,104360.0,0.463793]
[1750431170611,1.15956987,104370.0,104360.0,0.463793]
[1750431170918,1.17056987,104370.0,104360.0,0.464793]
[1750431171106,1.64056987,104370.0,104360.0,0.1926296]
[1750431171408,1.63056987,104370.0,104360.0,0.1926296]
[1750431171612,1.69056987,104370.0,104360.0,0.1930296]
[1750431171809,1.41056987,104370.0,104360.0,0.1926296]
[1750431172007,1.41056987,104370.0,104360.0,0.1930296]
[1750431172008,1.64256987,104370.0,104360.0,0.1930296]
[1750431172202,1.64156987,104370.0,104360.0,0.1930296]
[1750431172409,1.16356987,104370.0,104360.0,0.1940296]
[1750431172807,1.16256987,104370.0,104360.0,0.1940296]
[1750431173007,1.16356987,104370.0,104360.0,0.1940296]
[1750431173212,1.16556987,104370.0,104360.0,0.1930296]
[1750431173414,1.61556987,104370.0,104360.0,0.1930296]
[1750431173716,1.61856987,104370.0,104360.0,0.1930296]
[1750431174014,2.55888297,104370.0,104360.0,0.0014]
[1750431174311,2.55888297,104370.0,104340.0,1.0686568]
[1750431174312,0.1916296,104360.0,104350.0,0.83072]
[1750431174613,1.50278817,104360.0,104350.0,0.83072]
[1750431174812,1.69278817,104360.0,104350.0,0.83072]
[1750431175007,1.16871233,104360.0,104350.0,0.83072]
[1750431175208,0.1926479,104350.0,104340.0,0.1924603]
[1750431175419,1.50380647,104350.0,104340.0,1.0225063]
[1750431175714,1.59380647,104350.0,104340.0,0.0008]
[1750431175908,1.59380647,104350.0,104340.0,1.0223463]
[1750431176110,0.26499337,104350.0,104340.0,1.0223463]
[1750431176409,0.21529337,104350.0,104340.0,1.1187463]
[1750431176607,0.21629337,104350.0,104340.0,1.1187463]
[1750431176916,0.70980647,104350.0,104340.0,1.1197463]
[1750431177413,0.75790647,104350.0,104340.0,1.1197463]
[1750431177816,0.70980647,104350.0,104340.0,1.1197463]
[1750431178012,0.02764547,104350.0,104340.0,1.4805463]
[1750431178217,0.02864547,104350.0,104340.0,1.4805463]
[1750431178417,0.03164547,104350.0,104340.0,1.4815463]
[1750431178615,0.03064547,104350.0,104340.0,1.4815463]
[1750431179119,0.03064547,104350.0,104340.0,0.6516663]
[1750431179120,0.71180657,104350.0,104340.0,0.6516663]
[1750431179312,0.80300657,104350.0,104340.0,0.2898663]
[1750431179515,0.80400657,104350.0,104340.0,0.1944663]
[1750431179706,0.80400657,104350.0,104340.0,0.1936663]
[1750431179907,1.21400657,104350.0,104340.0,1.0242263]
[1750431180106,1.16100657,104350.0,104340.0,1.0242263]
[1750431180312,1.23100657,104350.0,104340.0,1.0242263]
[1750431180615,1.02229347,104350.0,104340.0,0.8322]
[1750431180822,1.64067085,104350.0,104340.0,0.002]
[1750431181007,1.64067085,104350.0,104340.0,0.0024]
[1750431181213,1.83234285,104350.0,104340.0,0.002]
[1750431181415,1.83234285,104350.0,104340.0,0.0024]
[1750431181614,1.83234285,104350.0,104330.0,0.00095845]
[1750431181615,0.1916664,104340.0,104330.0,0.00095845]
[1750431181915,1.68382497,104340.0,104330.0,0.19264325]
[1750431182116,0.98431187,104340.0,104330.0,0.19264325]
[1750431182417,1.53482497,104340.0,104330.0,0.19264325]
[1750431182716,1.11382497,104340.0,104330.0,0.19264325]
[1750431182913,0.57611187,104340.0,104330.0,0.19264325]
[1750431183118,1.06684843,104340.0,104330.0,0.28784325]
[1750431183313,1.06884843,104340.0,104330.0,1.07336325]
[1750431183516,1.11704843,104340.0,104330.0,1.02456325]
[1750431183707,1.12104843,104340.0,104330.0,1.02556325]
[1750431183914,1.07284843,104340.0,104330.0,1.12116325]
[1750431184214,0.006,104340.0,104330.0,3.11955635]
[1750431184411,0.01586428,104350.0,104340.0,0.1916664]
[1750431184606,0.01586428,104350.0,104340.0,0.7376664]
[1750431184807,0.01686428,104350.0,104340.0,0.7376664]
[1750431185109,0.69702538,104350.0,104340.0,0.6476664]
[1750431185314,0.1916664,104340.0,104330.0,1.30566578]
[1750431185520,0.6811795,104340.0,104330.0,1.96459558]
[1750431185718,0.6811795,104340.0,104330.0,1.96379558]
[1750431185908,0.6811795,104340.0,104330.0,1.96319558]
[1750431186113,1.0875795,104340.0,104330.0,1.96275568]
[1750431186432,1.51763769,104340.0,104330.0,0.84875078]
[1750431186718,1.46963769,104340.0,104330.0,0.84935078]
[1750431186920,1.15963769,104340.0,104330.0,0.84975078]
[1750431187215,1.16163769,104340.0,104330.0,1.04203568]
[1750431187419,1.49163769,104340.0,104330.0,1.04211568]
[1750431187617,1.10463779,104340.0,104330.0,1.13619568]
[1750431187923,1.52643779,104340.0,104330.0,0.85023078]
[1750431188118,1.57263779,104340.0,104330.0,0.84967078]
[1750431188421,1.57263779,104340.0,104330.0,0.85007078]
[1750431188618,1.57263779,104340.0,104330.0,0.02059078]
[1750431189023,1.57263779,104340.0,104330.0,0.84963078]
[1750431189217,2.06863779,104340.0,104330.0,0.84923078]
[1750431189419,1.97863779,104340.0,104330.0,0.84963078]
[1750431189618,2.02863779,104340.0,104330.0,0.19504335]
[1750431189816,2.36032579,104340.0,104330.0,0.00335845]
[1750431190217,2.36032579,104340.0,104330.0,0.00295845]
[1750431190523,2.87244579,104340.0,104330.0,0.00335845]
[1750431190713,2.82244579,104340.0,104330.0,0.00335845]
[1750431190920,3.01244579,104340.0,104330.0,0.00335845]
[1750431191120,2.36032579,104340.0,104330.0,0.00335845]
[1750431191421,0.1917033,104320.0,104310.0,0.2875077]
[1750431191627,0.1917216,104310.0,104300.0,0.00595873]
[1750431191920,0.1917216,104310.0,104300.0,0.34769873]
[1750431191921,1.65819807,104310.0,104300.0,0.34769873]
[1750431192121,1.7352843,104310.0,104300.0,0.00595873]
[1750431192422,1.7352843,104310.0,104300.0,0.00635873]
[1750431192629,1.7352843,104310.0,104300.0,0.00595873]
[1750431192630,1.87934348,104310.0,104300.0,0.00595873]
[1750431192821,0.001,104280.0,104270.0,0.000959]
[1750431193119,1.532603,104280.0,104270.0,0.3127542]
[1750431193325,2.062603,104280.0,104270.0,0.3131542]
[1750431193525,2.17674653,104280.0,104270.0,0.20674559]
[1750431193824,2.072703,104280.0,104270.0,0.001359]
[1750431194221,2.072703,104280.0,104270.0,0.000959]
[1750431194222,1.0979567,104280.0,104270.0,0.000959]
[1750431194421,2.1410466,104280.0,104270.0,0.001359]
[1750431194623,0.1928135,104260.0,104250.0,0.0959124]
[1750431194923,0.3650257,104260.0,104250.0,0.67310877]
[1750431195122,0.0240257,104260.0,104250.0,0.40570877]
[1750431195314,0.8533131,104280.0,104270.0,0.1917951]
[1750431195626,0.8533131,104280.0,104270.0,1.3801951]
[1750431195627,0.003,104280.0,104270.0,1.3801951]
[1750431195923,0.003,104280.0,104270.0,1.48756042]
[1750431195924,0.6842899,104280.0,104270.0,1.48756042]
[1750431196119,0.003,104280.0,104270.0,0.7358331]